[Event "2nd Goa GM Open 2019"]
[Site "Goa"]
[Date "2019.06.19"]
[Round "3.28"]
[White "Nguyen, Van Huy"]
[Black "Mahalakshmi, M."]
[Result "1-0"]
[ECO "E11"]
[WhiteElo "2456"]
[BlackElo "2245"]
[Annotator "ChessBase"]
[PlyCount "86"]
[EventDate "2019.06.17"]
[EventType "swiss"]
[EventCountry "IND"]
[SourceTitle "playchess.com"]
[Source "ChessBase"]
[SourceQuality "1"]
[TimeControl "5400+30"]

1. d4 {[%emt 0:00:00]} Nf6 {[%emt 0:00:00]} 2. c4 {[%emt 0:00:00]} e6 {[%emt 0:00:33]} 3. Nf3 {[%emt 0:00:12]} Bb4+ {[%emt 0:00:03]} 4. Nbd2 {[%emt 0:00:43]} O-O {[%emt 0:00:10]} 5. g3 {[%emt 0:00:10]} b6 {[%emt 0:00:12]} 6. Bg2 {[%emt 0:00:10]} Bb7 {[%emt 0:00:08]} 7. O-O {[%emt 0:00:09]} a5 {[%emt 0:00:08]} 8. Qc2 {[%emt 0:04:51]} Bxd2 {[%emt 0:00:39]} 9. Bxd2 {[%emt 0:02:32]} Be4 {[%emt 0:00:15]} 10. Qc3 {[%emt 0:01:49]} d6 {[%emt 0:02:39]} 11. Rfd1 {[%emt 0:04:17]} Nbd7 {[%emt 0:01:37]} 12. Bf1 {[%emt 0:02:04]} Re8 {[%emt 0:05:45]} 13. Ne1 {[%emt 0:04:18]} Bb7 {[%emt 0:00:46]} 14. f3 {[%emt 0:01:15]} e5 {[%emt 0:02:20]} 15. e4 {[%emt 0:01:09]} exd4 {[%emt 0:04:14]} 16. Qxd4 {[%emt 0:00:20]} Qe7 {[%emt 0:02:51]} 17. Bc3 {[%emt 0:04:54]} Rad8 {[%emt 0:03:20]} 18. Bg2 {[%emt 0:07:05]} Qe5 {[%emt 0:05:35]} 19. Nc2 {[%emt 0:08:19]} Qxd4+ {[%emt 0:01:57]} 20. Bxd4 {[%emt 0:02:09]} Ne5 {[%emt 0:03:05]} 21. Ne3 {[%emt 0:00:38]} Nfd7 {[%emt 0:00:47]} 22. b3 {[%emt 0:02:48]} Nc5 {[%emt 0:01:45]} 23. Rd2 {[%emt 0:00:23]} f6 {[%emt 0:05:09]} 24. Rad1 {[%emt 0:00:34]} Kf7 {[%emt 0:02:08]} 25. Kf2 {[%emt 0:00:34]} Ra8 {[%emt 0:05:02]} 26. Bf1 {[%emt 0:09:21]} Nc6 {[%emt 0:14:10]} 27. Bxc5 {[%emt 0:03:12]} bxc5 {[%emt 0:07:09]} 28. Nd5 {[%emt 0:00:51]} Re7 {[%emt 0:00:46]} 29. Nxe7 {[%emt 0:00:35]} Kxe7 {[%emt 0:00:16]} 30. f4 {[%emt 0:06:21]} a4 {[%emt 0:03:57]} 31. Bg2 {[%emt 0:01:28]} axb3 {[%emt 0:01:46]} 32. axb3 {[%emt 0:00:50]} Nd4 {[%emt 0:00:11]} 33. b4 {[%emt 0:02:03]} Ra3 {[%emt 0:01:22]} 34. e5 {[%emt 0:04:55]} Bxg2 {[%emt 0:02:09]} 35. exd6+ {[%emt 0:00:06]} cxd6 {[%emt 0:00:05]} 36. Kxg2 {[%emt 0:00:07]} Rc3 {[%emt 0:00:46]} 37. Ra1 {[%emt 0:02:15]} Kf7 {[%emt 0:04:23]} 38. b5 {[%emt 0:04:17]} Rxc4 {[%emt 0:00:34]} 39. Rb2 {[%emt 0:00:34]} Rb4 {[%emt 0:01:21]} 40. Rxb4 {[%emt 0:00:57]} cxb4 {[%emt 0:00:02]} 41. b6 {[%emt 0:00:15]} b3 {[%emt 0:00:25]} 42. b7 {[%emt 0:00:18]} b2 {[%emt 0:00:17]} 43. Ra7 {[%emt 0:01:16]} Ke6 1-0

[Event "2nd Goa GM Open 2019"]
[Site "Goa"]
[Date "2019.06.19"]
[Round "3.30"]
[White "Karthikeyan, P.."]
[Black "Deshpande, Aniruddha"]
[Result "1/2-1/2"]
[ECO "A20"]
[WhiteElo "2445"]
[BlackElo "2242"]
[Annotator "NA"]
[PlyCount "46"]
[EventDate "2019.06.17"]
[EventType "swiss"]
[EventCountry "IND"]
[SourceTitle "playchess.com"]
[Source "ChessBase"]
[SourceQuality "1"]
[TimeControl "5400+30"]

1. c4 {[%emt 0:01:16]} e5 {[%emt 0:01:00]} 2. g3 {[%emt 0:00:49]} Nf6 {[%emt 0:00:42]} 3. Bg2 {[%emt 0:00:05]} d5 {[%emt 0:00:11]} 4. cxd5 {[%emt 0:00:13]} Nxd5 {[%emt 0:00:10]} 5. Nf3 {[%emt 0:00:27]} Nc6 {[%emt 0:00:08]} 6. O-O {[%emt 0:00:59]} Nb6 {[%emt 0:00:22]} 7. b3 {[%emt 0:00:21]} Bd6 {[%emt 0:19:11]} 8. Bb2 {[%emt 0:01:42]} O-O {[%emt 0:03:15]} 9. Nc3 {[%emt 0:07:19]} f5 {[%emt 0:00:38]} 10. Nb5 {[%emt 0:04:06]} Be6 {[%emt 0:02:27]} 11. Rc1 {[%emt 0:04:10]} Qe7 {[%emt 0:01:58]} 12. d4 {[%emt 0:02:56]} e4 {[%emt 0:01:53]} 13. Ne5 {[%emt 0:00:59]} Nb4 {[%emt 0:02:54]} 14. Ba3 {[%emt 0:03:08]} N6d5 {[%emt 0:12:58]} 15. Qd2 {[%emt 0:07:48]} a5 {[%emt 0:00:47]} 16. Nc4 {[%emt 0:00:53]} b6 {[%emt 0:06:30]} 17. f3 {[%emt 0:05:44]} Bd7 {[%emt 0:01:38]} 18. Nbxd6 {[%emt 0:15:26]} cxd6 {[%emt 0:00:09]} 19. fxe4 {[%emt 0:15:19]} fxe4 {[%emt 0:00:17]} 20. Ne3 {[%emt 0:07:50]} Qg5 {[%emt 0:02:56]} 21. Nc4 {[%emt 0:07:55]} Qe7 {[%emt 0:08:28]} 22. Ne3 {[%emt 0:02:06]} Qg5 {[%emt 0:00:13]} 23. Nc4 {[%emt 0:00:03]} Qe7 1/2-1/2

[Event "2nd Goa GM Open 2019"]
[Site "Goa"]
[Date "2019.06.20"]
[Round "4.3"]
[White "Petrosyan, Manuel"]
[Black "Sammed Jaykumar, Shete"]
[Result "1-0"]
[ECO "A16"]
[WhiteElo "2573"]
[BlackElo "2431"]
[Annotator "ChessBase"]
[PlyCount "99"]
[EventDate "2019.06.17"]
[EventType "swiss"]
[EventCountry "IND"]
[SourceTitle "playchess.com"]
[Source "ChessBase"]
[SourceQuality "1"]
[TimeControl "5400+30"]

1. c4 {[%emt 0:03:30]} Nf6 {[%emt 0:02:54]} 2. Nc3 {[%emt 0:00:55]} d5 {[%emt 0:01:12]} 3. cxd5 {[%emt 0:00:59]} Nxd5 {[%emt 0:00:04]} 4. g3 {[%emt 0:02:21]} g6 {[%emt 0:02:44]} 5. Bg2 {[%emt 0:02:21]} Nxc3 {[%emt 0:00:25]} 6. bxc3 {[%emt 0:00:03]} c5 {[%emt 0:00:36]} 7. Rb1 {[%emt 0:00:04]} Qc7 {[%emt 0:01:33]} 8. h4 {[%emt 0:00:43]} Bg7 {[%emt 0:05:00]} 9. h5 {[%emt 0:01:25]} Nd7 {[%emt 0:01:01]} 10. Qa4 {[%emt 0:04:02]} a6 {[%emt 0:02:17]} 11. Nh3 {[%emt 0:09:17]} Rb8 {[%emt 0:04:12]} 12. Nf4 {[%emt 0:01:01]} e6 {[%emt 0:00:40]} 13. c4 {[%emt 0:05:47]} O-O {[%emt 0:04:02]} 14. hxg6 {[%emt 0:03:06]} hxg6 {[%emt 0:00:50]} 15. Qc2 {[%emt 0:00:04]} Ne5 {[%emt 0:03:30]} 16. a4 {[%emt 0:04:59]} b6 {[%emt 0:02:22]} 17. Bb2 {[%emt 0:01:21]} Bb7 {[%emt 0:05:35]} 18. Bxb7 {[%emt 0:03:03]} Rxb7 {[%emt 0:04:40]} 19. Qe4 {[%emt 0:05:29]} Qc6 {[%emt 0:03:06]} 20. Qxc6 {[%emt 0:02:19]} Nxc6 {[%emt 0:00:04]} 21. Bxg7 {[%emt 0:02:57]} Kxg7 {[%emt 0:00:35]} 22. Nd3 {[%emt 0:06:25]} Rfb8 {[%emt 0:06:46]} 23. f3 {[%emt 0:02:27]} a5 {[%emt 0:05:30]} 24. Nf2 {[%emt 0:00:40]} Nb4 {[%emt 0:03:13]} 25. d3 {[%emt 0:00:43]} Rh8 {[%emt 0:02:48]} 26. Rxh8 {[%emt 0:00:57]} Kxh8 {[%emt 0:00:06]} 27. Kd2 {[%emt 0:00:05]} Kg7 {[%emt 0:00:12]} 28. f4 {[%emt 0:00:43]} f6 {[%emt 0:08:10]} 29. Ne4 {[%emt 0:00:42]} g5 {[%emt 0:08:29]} 30. Rh1 {[%emt 0:02:37]} gxf4 {[%emt 0:02:30]} 31. gxf4 {[%emt 0:00:07]} Rb8 {[%emt 0:00:26]} 32. f5 {[%emt 0:05:23]} exf5 {[%emt 0:01:47]} 33. Nd6 {[%emt 0:01:25]} f4 {[%emt 0:01:58]} 34. Rf1 {[%emt 0:00:15]} Rd8 {[%emt 0:01:53]} 35. Nf5+ {[%emt 0:01:43]} Kf7 {[%emt 0:00:07]} 36. Rxf4 {[%emt 0:00:12]} Nc6 {[%emt 0:00:21]} 37. Ne3 {[%emt 0:01:47]} Rd6 {[%emt 0:00:33]} 38. Nd5 {[%emt 0:01:13]} Ne7 {[%emt 0:00:35]} 39. e4 {[%emt 0:02:09]} Ng6 {[%emt 0:04:54]} 40. Rf1 {[%emt 0:00:10]} Ne5 {[%emt 0:00:08]} 41. Rb1 {[%emt 0:00:10]} Nd7 {[%emt 0:00:10]} 42. Rh1 {[%emt 0:00:16]} Nf8 {[%emt 0:04:17]} 43. Ke3 {[%emt 0:01:46]} Kg6 {[%emt 0:00:44]} 44. Rb1 {[%emt 0:01:06]} Nd7 {[%emt 0:00:08]} 45. Ne7+ {[%emt 0:00:14]} Kf7 {[%emt 0:00:39]} 46. Nf5 {[%emt 0:00:11]} Rc6 {[%emt 0:01:14]} 47. Rg1 {[%emt 0:00:12]} Ne5 {[%emt 0:00:33]} 48. Rg7+ {[%emt 0:00:33]} Ke8 {[%emt 0:00:56]} 49. Ke2 {[%emt 0:02:01]} Re6 {[%emt 0:03:49]} 50. Ne3 {[%emt 0:00:49]} 1-0

[Event "2nd Goa GM Open 2019"]
[Site "Goa"]
[Date "2019.06.20"]
[Round "4.4"]
[White "Viani Antonio Dcunha"]
[Black "Deepan Chakkravarthy J."]
[Result "1/2-1/2"]
[ECO "C55"]
[WhiteElo "2362"]
[BlackElo "2557"]
[Annotator "ChessBase"]
[PlyCount "111"]
[EventDate "2019.06.17"]
[EventType "swiss"]
[EventCountry "IND"]
[SourceTitle "playchess.com"]
[Source "ChessBase"]
[SourceQuality "1"]
[TimeControl "5400+30"]

1. e4 {[%emt 0:00:08]} e5 {[%emt 0:00:00]} 2. Nf3 {[%emt 0:00:21]} Nc6 {[%emt 0:00:00]} 3. Bc4 {[%emt 0:01:36]} Nf6 {[%emt 0:00:08]} 4. d3 {[%emt 0:00:09]} Be7 {[%emt 0:00:25]} 5. O-O {[%emt 0:00:52]} O-O {[%emt 0:00:06]} 6. Bb3 {[%emt 0:03:16]} d6 {[%emt 0:00:15]} 7. c3 {[%emt 0:00:09]} Na5 {[%emt 0:00:05]} 8. Bc2 {[%emt 0:00:14]} c5 {[%emt 0:00:04]} 9. Nbd2 {[%emt 0:00:14]} Nc6 {[%emt 0:01:21]} 10. Re1 {[%emt 0:04:41]} Re8 {[%emt 0:03:05]} 11. a3 {[%emt 0:01:07]} Bf8 {[%emt 0:00:54]} 12. b4 {[%emt 0:02:32]} a6 {[%emt 0:00:14]} 13. d4 {[%emt 0:07:44]} exd4 {[%emt 0:10:06]} 14. cxd4 {[%emt 0:00:13]} cxb4 {[%emt 0:00:07]} 15. d5 {[%emt 0:02:31]} Ne5 {[%emt 0:00:09]} 16. axb4 {[%emt 0:01:45]} Bd7 {[%emt 0:00:05]} 17. Nb3 {[%emt 0:09:02]} Rc8 {[%emt 0:02:16]} 18. Be3 {[%emt 0:05:15]} Nxf3+ {[%emt 0:03:43]} 19. gxf3 {[%emt 0:00:09]} Nh5 {[%emt 0:00:18]} 20. Nd4 {[%emt 0:08:40]} g6 {[%emt 0:07:02]} 21. Qd2 {[%emt 0:08:44]} Bg7 {[%emt 0:01:19]} 22. Bd3 {[%emt 0:13:51]} h6 {[%emt 0:19:19]} 23. Rac1 {[%emt 0:05:02]} Qh4 {[%emt 0:01:38]} 24. Ne2 {[%emt 0:00:31]} Be5 {[%emt 0:00:38]} 25. Ng3 {[%emt 0:03:00]} Nf4 {[%emt 0:01:51]} 26. Bf1 {[%emt 0:01:11]} Bh3 {[%emt 0:19:24]} 27. Kh1 {[%emt 0:04:04]} Rxc1 {[%emt 0:09:32]} 28. Rxc1 {[%emt 0:00:46]} Bxf1 {[%emt 0:01:46]} 29. Rxf1 {[%emt 0:00:10]} Qf6 {[%emt 0:02:24]} 30. Rc1 {[%emt 0:10:58]} h5 {[%emt 0:00:19]} 31. Rc7 {[%emt 0:00:25]} h4 {[%emt 0:00:19]} 32. Ne2 {[%emt 0:02:21]} Nxe2 {[%emt 0:13:48]} 33. Qxe2 {[%emt 0:00:09]} h3 {[%emt 0:00:04]} 34. f4 {[%emt 0:03:12]} Bd4 {[%emt 0:03:39]} 35. Qf3 {[%emt 0:01:51]} Bxe3 {[%emt 0:00:06]} 36. Qxe3 {[%emt 0:00:10]} Kg7 {[%emt 0:00:55]} 37. Qxh3 {[%emt 0:00:23]} Qxf4 {[%emt 0:00:21]} 38. Qc3+ {[%emt 0:00:50]} Kg8 {[%emt 0:00:42]} 39. f3 {[%emt 0:00:14]} g5 {[%emt 0:00:10]} 40. Kg2 {[%emt 0:00:37]} g4 {[%emt 0:00:47]} 41. Rxb7 {[%emt 0:00:43]} gxf3+ {[%emt 0:00:28]} 42. Qxf3 {[%emt 0:00:05]} Qd2+ {[%emt 0:00:18]} 43. Qf2 {[%emt 0:00:30]} Qg5+ {[%emt 0:00:46]} 44. Qg3 {[%emt 0:00:20]} Qxg3+ {[%emt 0:00:11]} 45. Kxg3 {[%emt 0:00:13]} Rxe4 {[%emt 0:00:08]} 46. Rb6 {[%emt 0:00:07]} Kf8 {[%emt 0:00:39]} 47. Rxd6 {[%emt 0:00:28]} Rxb4 {[%emt 0:00:05]} 48. Rxa6 {[%emt 0:00:04]} Rd4 {[%emt 0:00:05]} 49. d6 {[%emt 0:00:11]} f5 {[%emt 0:00:33]} 50. h4 {[%emt 0:00:28]} Kg7 {[%emt 0:00:51]} 51. Ra7+ {[%emt 0:00:47]} Kg6 {[%emt 0:00:56]} 52. d7 {[%emt 0:00:09]} Kh5 {[%emt 0:00:25]} 53. Kf3 {[%emt 0:00:53]} f4 {[%emt 0:00:15]} 54. Ra5+ {[%emt 0:01:03]} Kxh4 {[%emt 0:00:32]} 55. Rf5 {[%emt 0:00:07]} Rxd7 {[%emt 0:00:06]} 56. Rxf4+ {[%emt 0:00:40]} 1/2-1/2

[Event "2nd Goa GM Open 2019"]
[Site "Goa"]
[Date "2019.06.20"]
[Round "4.5"]
[White "Iniyan, P."]
[Black "Mitrabha, Guha"]
[Result "1/2-1/2"]
[ECO "B10"]
[WhiteElo "2525"]
[BlackElo "2341"]
[Annotator "ChessBase"]
[PlyCount "85"]
[EventDate "2019.06.17"]
[EventType "swiss"]
[EventCountry "IND"]
[SourceTitle "playchess.com"]
[Source "ChessBase"]
[SourceQuality "1"]
[TimeControl "5400+30"]

1. e4 {[%emt 0:00:00]} c6 {[%emt 0:00:00]} 2. Nc3 {[%emt 0:00:07]} d5 {[%emt 0:00:00]} 3. Qf3 {[%emt 0:00:07]} dxe4 {[%emt 0:04:14]} 4. Nxe4 {[%emt 0:02:51]} Qd5 {[%emt 0:00:26]} 5. Ne2 {[%emt 0:05:22]} Nf6 {[%emt 0:01:10]} 6. d3 {[%emt 0:01:40]} Nbd7 {[%emt 0:02:33]} 7. N2c3 {[%emt 0:00:20]} Qh5 {[%emt 0:01:15]} 8. Qg3 {[%emt 0:01:52]} Nxe4 {[%emt 0:03:52]} 9. Nxe4 {[%emt 0:02:42]} Nf6 {[%emt 0:04:35]} 10. Nxf6+ {[%emt 0:01:03]} exf6 {[%emt 0:01:12]} 11. Be2 {[%emt 0:02:16]} Qg6 {[%emt 0:00:09]} 12. Bf4 {[%emt 0:09:32]} Be6 {[%emt 0:00:59]} 13. O-O-O {[%emt 0:01:37]} Qxg3 {[%emt 0:00:26]} 14. Bxg3 {[%emt 0:00:09]} O-O-O {[%emt 0:00:53]} 15. d4 {[%emt 0:03:42]} a5 {[%emt 0:02:09]} 16. c4 Bd6 {[%emt 0:00:17]} 17. Bxd6 {[%emt 0:04:37]} Rxd6 {[%emt 0:00:02]} 18. Kc2 {[%emt 0:00:10]} Rhd8 {[%emt 0:01:55]} 19. Kc3 {[%emt 0:00:25]} Kc7 {[%emt 0:00:02]} 20. a3 {[%emt 0:01:47]} b5 {[%emt 0:03:36]} 21. cxb5 {[%emt 0:02:01]} cxb5 {[%emt 0:00:02]} 22. Bxb5 {[%emt 0:00:26]} Kb6 {[%emt 0:00:18]} 23. Bc4 {[%emt 0:09:21]} Rc8 {[%emt 0:00:12]} 24. b3 {[%emt 0:00:06]} a4 {[%emt 0:00:03]} 25. d5 {[%emt 0:01:39]} Rxd5 {[%emt 0:00:05]} 26. Rxd5 {[%emt 0:00:08]} Bxd5 {[%emt 0:00:01]} 27. Kb4 {[%emt 0:00:10]} Bxc4 {[%emt 0:00:33]} 28. bxc4 {[%emt 0:00:07]} Re8 {[%emt 0:00:05]} 29. Kc3 {[%emt 0:00:18]} Re2 {[%emt 0:01:53]} 30. Rb1+ {[%emt 0:03:04]} Kc6 {[%emt 0:00:02]} 31. Rb2 {[%emt 0:00:07]} Re8 {[%emt 0:00:01]} 32. Rb5 {[%emt 0:00:42]} Re1 {[%emt 0:00:33]} 33. Kb4 {[%emt 0:01:13]} g6 {[%emt 0:00:28]} 34. Rc5+ {[%emt 0:01:29]} Kb7 {[%emt 0:00:31]} 35. Rd5 {[%emt 0:00:06]} Re2 {[%emt 0:02:05]} 36. Rd7+ {[%emt 0:00:06]} Kc6 {[%emt 0:00:01]} 37. Rxf7 {[%emt 0:00:08]} Rxf2 {[%emt 0:00:02]} 38. g4 {[%emt 0:00:23]} Rb2+ {[%emt 0:00:05]} 39. Kxa4 {[%emt 0:00:29]} Rxh2 {[%emt 0:00:02]} 40. Kb4 {[%emt 0:05:25]} Rb2+ {[%emt 0:00:25]} 41. Kc3 {[%emt 0:00:05]} Rg2 {[%emt 0:00:05]} 42. Kb4 {[%emt 0:00:06]} Rb2+ {[%emt 0:00:07]} 43. Kc3 {[%emt 0:00:03]} 1/2-1/2

[Event "2nd Goa GM Open 2019"]
[Site "Goa"]
[Date "2019.06.20"]
[Round "4.6"]
[White "Sankalp Gupta"]
[Black "Kostenko, Petr"]
[Result "0-1"]
[ECO "C07"]
[WhiteElo "2359"]
[BlackElo "2473"]
[Annotator "ChessBase"]
[PlyCount "72"]
[EventDate "2019.06.17"]
[EventType "swiss"]
[EventCountry "IND"]
[SourceTitle "playchess.com"]
[Source "ChessBase"]
[SourceQuality "1"]
[TimeControl "5400+30"]

1. e4 {[%emt 0:05:52]} e6 {[%emt 0:18:27]} 2. d4 {[%emt 0:00:03]} d5 {[%emt 0:00:10]} 3. Nd2 {[%emt 0:00:05]} c5 {[%emt 0:00:06]} 4. exd5 {[%emt 0:00:05]} Qxd5 {[%emt 0:00:04]} 5. Ngf3 {[%emt 0:00:08]} cxd4 {[%emt 0:00:02]} 6. Bc4 {[%emt 0:00:09]} Qd8 {[%emt 0:00:03]} 7. O-O {[%emt 0:00:12]} Nc6 {[%emt 0:00:02]} 8. Nb3 {[%emt 0:00:06]} a6 {[%emt 0:00:06]} 9. a4 {[%emt 0:03:15]} Nf6 {[%emt 0:03:08]} 10. Nbxd4 {[%emt 0:02:50]} Nxd4 {[%emt 0:00:09]} 11. Nxd4 {[%emt 0:00:14]} Bd6 {[%emt 0:00:59]} 12. h3 {[%emt 0:02:45]} O-O {[%emt 0:10:04]} 13. Bg5 {[%emt 0:02:55]} h6 {[%emt 0:06:11]} 14. Bh4 {[%emt 0:08:32]} Qc7 {[%emt 0:02:02]} 15. Qe2 {[%emt 0:05:33]} Nh5 {[%emt 0:01:06]} 16. b3 {[%emt 0:07:02]} Nf4 {[%emt 0:00:44]} 17. Qe4 {[%emt 0:05:27]} b5 {[%emt 0:14:24]} 18. Bd3 {[%emt 0:15:33]} Nxd3 {[%emt 0:01:16]} 19. Qxd3 {[%emt 0:01:36]} b4 {[%emt 0:00:58]} 20. Rad1 {[%emt 0:03:14]} Bb7 {[%emt 0:00:36]} 21. Ne2 {[%emt 0:03:29]} Qc6 {[%emt 0:02:12]} 22. f3 {[%emt 0:00:12]} Bc5+ {[%emt 0:00:21]} 23. Bf2 {[%emt 0:04:13]} Rfc8 {[%emt 0:00:58]} 24. Rd2 {[%emt 0:01:10]} Be7 {[%emt 0:00:59]} 25. Nd4 {[%emt 0:12:30]} Qc7 {[%emt 0:00:42]} 26. Rfd1 {[%emt 0:01:49]} Rd8 {[%emt 0:01:31]} 27. Qe2 {[%emt 0:00:52]} Bf6 {[%emt 0:04:08]} 28. Be3 {[%emt 0:00:18]} Be5 {[%emt 0:05:29]} 29. f4 {[%emt 0:03:28]} Bf6 {[%emt 0:08:55]} 30. Qg4 {[%emt 0:04:27]} Kh8 {[%emt 0:03:21]} 31. f5 {[%emt 0:00:26]} exf5 {[%emt 0:02:21]} 32. Nxf5 {[%emt 0:00:20]} Rxd2 {[%emt 0:00:34]} 33. Rxd2 {[%emt 0:00:04]} Re8 {[%emt 0:00:46]} 34. Bd4 {[%emt 0:00:50]} Re1+ {[%emt 0:01:14]} 35. Kf2 {[%emt 0:00:03]} Re4 {[%emt 0:00:11]} 36. Qg3 {[%emt 0:01:22]} Qf4+ {[%emt 0:00:59]} 0-1

[Event "2nd Goa GM Open 2019"]
[Site "Goa"]
[Date "2019.06.20"]
[Round "4.10"]
[White "Jojua, Davit"]
[Black "Bharath Subramaniyam H"]
[Result "0-1"]
[ECO "A61"]
[WhiteElo "2580"]
[BlackElo "2383"]
[Annotator "ChessBase"]
[PlyCount "83"]
[EventDate "2019.06.17"]
[EventType "swiss"]
[EventCountry "IND"]
[SourceTitle "playchess.com"]
[Source "ChessBase"]
[SourceQuality "1"]
[TimeControl "5400+30"]

1. d4 {[%emt 0:00:00]} Nf6 {[%emt 0:00:00]} 2. c4 {[%emt 0:00:00]} e6 {[%emt 0:00:05]} 3. Nc3 {[%emt 0:00:00]} c5 {[%emt 0:00:34]} 4. d5 {[%emt 0:00:00]} exd5 {[%emt 0:00:07]} 5. cxd5 {[%emt 0:00:00]} d6 {[%emt 0:00:10]} 6. Nf3 {[%emt 0:00:11]} g6 {[%emt 0:00:12]} 7. h3 {[%emt 0:00:06]} Bg7 {[%emt 0:00:41]} 8. e4 {[%emt 0:00:23]} O-O {[%emt 0:00:16]} 9. Bd3 {[%emt 0:00:06]} b5 {[%emt 0:00:14]} 10. Nxb5 {[%emt 0:00:12]} Re8 {[%emt 0:00:14]} 11. O-O {[%emt 0:00:23]} Nxe4 {[%emt 0:00:11]} 12. Qa4 {[%emt 0:00:12]} a6 {[%emt 0:02:03]} 13. Bxe4 {[%emt 0:09:40]} Bd7 {[%emt 0:00:32]} 14. Re1 {[%emt 0:03:26]} Bxb5 {[%emt 0:02:06]} 15. Qb3 {[%emt 0:00:57]} c4 {[%emt 0:26:08]} 16. Qb4 {[%emt 0:17:10]} c3 {[%emt 0:03:42]} 17. bxc3 {[%emt 0:23:16]} Qc7 {[%emt 0:00:48]} 18. Bd2 {[%emt 0:06:36]} Nd7 {[%emt 0:01:37]} 19. Bc2 {[%emt 0:08:23]} Nb6 {[%emt 0:09:10]} 20. Bb3 {[%emt 0:02:16]} Be2 {[%emt 0:07:11]} 21. Qf4 {[%emt 0:08:06]} Bc4 {[%emt 0:01:30]} 22. Ng5 {[%emt 0:06:12]} h6 {[%emt 0:17:33]} 23. Ne4 {[%emt 0:00:04]} Nxd5 {[%emt 0:01:19]} 24. Qf3 {[%emt 0:02:30]} Rad8 {[%emt 0:00:57]} 25. Rad1 {[%emt 0:02:53]} f5 {[%emt 0:03:26]} 26. Ng3 {[%emt 0:01:06]} Nb6 {[%emt 0:03:31]} 27. h4 {[%emt 0:01:16]} h5 {[%emt 0:01:43]} 28. Ne2 {[%emt 0:01:04]} d5 {[%emt 0:02:06]} 29. Nf4 {[%emt 0:01:38]} Qf7 {[%emt 0:01:29]} 30. Rxe8+ {[%emt 0:01:41]} Rxe8 {[%emt 0:01:43]} 31. Be3 {[%emt 0:00:01]} Nd7 {[%emt 0:01:04]} 32. Nxg6 {[%emt 0:03:15]} Qxg6 {[%emt 0:01:39]} 33. Bxc4 {[%emt 0:00:01]} dxc4 {[%emt 0:00:01]} 34. Rxd7 {[%emt 0:00:36]} Bxc3 {[%emt 0:00:08]} 35. Qf4 {[%emt 0:01:19]} Re4 {[%emt 0:01:04]} 36. Qb8+ {[%emt 0:00:05]} Re8 {[%emt 0:00:05]} 37. Qc7 {[%emt 0:00:19]} Qe6 {[%emt 0:00:43]} 38. Qg3+ {[%emt 0:00:20]} Kh8 {[%emt 0:00:07]} 39. Rd6 {[%emt 0:00:14]} Be5 {[%emt 0:01:25]} 40. Rxe6 {[%emt 0:00:04]} Rxe6 {[%emt 0:00:05]} 41. Qg5 {[%emt 0:00:40]} c3 {[%emt 0:00:05]} 42. Qxf5 {[%emt 0:00:11]} 0-1

[Event "2nd Goa GM Open 2019"]
[Site "Goa"]
[Date "2019.06.20"]
[Round "4.12"]
[White "Rahul Srivatshav P"]
[Black "Burmakin, Vladimir"]
[Result "1/2-1/2"]
[ECO "A13"]
[WhiteElo "2395"]
[BlackElo "2526"]
[Annotator "ChessBase"]
[PlyCount "99"]
[EventDate "2019.06.17"]
[EventType "swiss"]
[EventCountry "IND"]
[SourceTitle "playchess.com"]
[Source "ChessBase"]
[SourceQuality "1"]
[TimeControl "5400+30"]

1. c4 {[%emt 0:00:00]} e6 {[%emt 0:00:00]} 2. Nf3 {[%emt 0:00:03]} Nf6 {[%emt 0:00:00]} 3. g3 {[%emt 0:00:05]} b6 {[%emt 0:00:10]} 4. Bg2 {[%emt 0:00:31]} Bb7 {[%emt 0:00:07]} 5. O-O {[%emt 0:00:24]} d5 {[%emt 0:01:01]} 6. b3 {[%emt 0:10:37]} Be7 {[%emt 0:02:23]} 7. Bb2 {[%emt 0:04:27]} O-O {[%emt 0:00:10]} 8. e3 {[%emt 0:01:53]} dxc4 {[%emt 0:01:15]} 9. bxc4 {[%emt 0:00:08]} c5 {[%emt 0:00:11]} 10. Nc3 {[%emt 0:00:13]} Nc6 {[%emt 0:00:26]} 11. Qe2 {[%emt 0:00:49]} Rc8 {[%emt 0:02:18]} 12. Rfd1 {[%emt 0:00:51]} Qc7 {[%emt 0:00:05]} 13. h3 {[%emt 0:01:18]} Rfd8 {[%emt 0:00:40]} 14. d3 {[%emt 0:04:28]} Qb8 {[%emt 0:00:24]} 15. g4 {[%emt 0:04:14]} Qa8 {[%emt 0:01:34]} 16. g5 {[%emt 0:05:20]} Ne8 {[%emt 0:00:12]} 17. Ne4 {[%emt 0:07:50]} Nb4 {[%emt 0:16:23]} 18. Ne5 {[%emt 0:25:07]} Nxd3 {[%emt 0:00:23]} 19. Rxd3 {[%emt 0:00:07]} Bxe4 {[%emt 0:00:09]} 20. Qh5 {[%emt 0:00:02]} g6 {[%emt 0:01:23]} 21. Qh4 {[%emt 0:00:05]} Bxg2 {[%emt 0:00:37]} 22. Qf4 {[%emt 0:00:23]} f6 {[%emt 0:04:49]} 23. Nd7 {[%emt 0:00:59]} Bxh3 {[%emt 0:09:45]} 24. Qg3 {[%emt 0:05:32]} Bf5 {[%emt 0:01:40]} 25. gxf6 {[%emt 0:02:54]} Rxd7 {[%emt 0:15:06]} 26. f7+ {[%emt 0:00:20]} Kxf7 {[%emt 0:00:02]} 27. Rxd7 {[%emt 0:00:05]} Qe4 {[%emt 0:00:38]} 28. Rad1 {[%emt 0:00:53]} Rc7 {[%emt 0:05:58]} 29. Be5 {[%emt 0:02:33]} Rxd7 {[%emt 0:01:45]} 30. Rxd7 {[%emt 0:00:04]} Nf6 {[%emt 0:15:16]} 31. Rxa7 {[%emt 0:02:04]} Qxc4 {[%emt 0:00:33]} 32. Qg5 {[%emt 0:10:09]} Qc1+ {[%emt 0:01:48]} 33. Kh2 {[%emt 0:00:47]} Ng4+ {[%emt 0:02:06]} 34. Kg2 {[%emt 0:00:06]} Be4+ {[%emt 0:01:19]} 35. Kg3 {[%emt 0:00:12]} Qg1+ {[%emt 0:01:51]} 36. Kf4 {[%emt 0:00:22]} Qxf2+ {[%emt 0:03:35]} 37. Kxe4 {[%emt 0:00:09]} Qf5+ {[%emt 0:01:31]} 38. Qxf5+ {[%emt 0:00:09]} exf5+ {[%emt 0:00:02]} 39. Kf4 {[%emt 0:01:58]} Nxe5 {[%emt 0:03:49]} 40. Kxe5 {[%emt 0:00:13]} b5 {[%emt 0:00:03]} 41. a3 h5 {[%emt 0:00:14]} 42. Rb7 {[%emt 0:04:17]} c4 {[%emt 0:02:53]} 43. Rxb5 {[%emt 0:00:06]} Bxa3 {[%emt 0:00:02]} 44. Rb7+ {[%emt 0:00:55]} Be7 {[%emt 0:00:02]} 45. Rc7 {[%emt 0:00:23]} c3 {[%emt 0:00:04]} 46. e4 {[%emt 0:00:42]} fxe4 {[%emt 0:00:12]} 47. Kxe4 {[%emt 0:00:05]} Ke6 {[%emt 0:00:04]} 48. Rxc3 {[%emt 0:00:05]} g5 {[%emt 0:00:05]} 49. Rg3 {[%emt 0:00:20]} Kf6 {[%emt 0:00:46]} 50. Rxg5 {[%emt 0:00:17]} 1/2-1/2